bitfinex-derivatives/quotes_BTCF0:USTF0_20250129
["timestamp","ask_amount","ask_price","bid_price","bid_amount"]
[1738163494236,1.20656111,102520.0,102510.0,8.4e-07]
[1738163494434,1.0694745,102520.0,102510.0,8.4e-07]
[1738163494632,1.20656111,102520.0,102510.0,8.4e-07]
[1738163494834,0.19519,102500.0,102490.0,0.17212132]
[1738163495042,0.195228,102480.0,102470.0,0.4762]
[1738163495229,0.19752389,102480.0,102470.0,0.4762]
[1738163496136,0.1393825,102480.0,102460.0,0.11701035]
[1738163496337,0.1393825,102480.0,102460.0,0.00161035]
[1738163496338,0.19754289,102470.0,102460.0,0.00161035]
[1738163497435,0.3346295,102470.0,102460.0,0.00161035]
[1738163497833,0.6954295,102470.0,102460.0,0.00261035]
[1738163498934,0.6954295,102470.0,102460.0,0.00514684]
[1738163499837,0.6974295,102470.0,102460.0,0.00114684]
[1738163500041,0.6974295,102470.0,102460.0,0.00014684]
[1738163500240,0.6984295,102470.0,102460.0,0.00014684]
[1738163500538,0.7014295,102470.0,102460.0,0.00014684]
[1738163501637,0.56434289,102470.0,102460.0,0.00014684]
[1738163502029,0.55934289,102470.0,102460.0,0.00014684]
[1738163502345,0.56434289,102470.0,102460.0,0.00014684]
[1738163502730,0.20354289,102470.0,102460.0,0.00014684]
[1738163502934,0.20354289,102470.0,102460.0,0.19541284]
[1738163503335,0.20054289,102470.0,102460.0,0.30071284]
[1738163503535,0.20054289,102470.0,102460.0,0.76771284]
[1738163503931,0.20054289,102470.0,102460.0,0.40691284]
[1738163504337,0.20054289,102470.0,102460.0,0.21164684]
[1738163504531,0.20054289,102470.0,102460.0,0.10544684]
[1738163504741,0.19954289,102470.0,102460.0,0.10544684]
[1738163504947,0.3346295,102470.0,102460.0,0.00014684]
[1738163505138,0.6984295,102470.0,102460.0,8.4e-07]
[1738163505634,0.195304,102440.0,102430.0,0.10766426]
[1738163505840,0.195323,102430.0,102420.0,0.39981512]
[1738163506037,0.69320961,102430.0,102420.0,0.39981512]
[1738163506237,0.19761889,102430.0,102420.0,0.39981512]
[1738163506636,0.19761889,102430.0,102420.0,0.59515712]
[1738163507147,0.19761889,102430.0,102420.0,0.39981512]
[1738163507445,0.7701508,102430.0,102420.0,0.28791512]
[1738163508238,0.7701508,102430.0,102420.0,0.29191512]
[1738163509048,0.19761889,102430.0,102420.0,0.29191512]
[1738163509349,0.19761889,102430.0,102420.0,0.199342]
[1738163510044,0.19761889,102430.0,102420.0,0.004]
[1738163510249,0.4093508,102430.0,102420.0,0.004]
[1738163510843,0.19761889,102430.0,102420.0,0.004]
[1738163511346,0.55841889,102430.0,102420.0,0.004]
[1738163511649,0.7701508,102430.0,102420.0,0.004]
[1738163511846,0.8796508,102430.0,102420.0,1e-06]
[1738163512047,0.7566478,102430.0,102410.0,8.4e-07]
[1738163512351,0.7701698,102420.0,102410.0,8.4e-07]
[1738163512535,0.7744698,102420.0,102410.0,8.4e-07]
[1738163513650,0.7744698,102420.0,102410.0,0.00100084]
[1738163513948,0.7744698,102420.0,102410.0,8.4e-07]
[1738163514343,1.0744698,102420.0,102410.0,8.4e-07]
[1738163514542,0.195361,102410.0,102400.0,0.1]
[1738163514747,0.76789291,102410.0,102400.0,0.1]
[1738163514938,0.556161,102410.0,102400.0,0.1]
[1738163515246,0.76789291,102410.0,102400.0,0.1]
[1738163515545,0.7701888,102410.0,102400.0,0.1]
[1738163515734,0.55845689,102410.0,102400.0,0.1]
[1738163516539,0.7701888,102410.0,102400.0,0.1]
[1738163516734,0.19538,102400.0,102390.0,0.00014684]
[1738163516948,0.76791191,102400.0,102390.0,0.00014684]
[1738163517444,0.8850078,102400.0,102390.0,0.00014684]
[1738163518040,0.8850078,102400.0,102390.0,0.00114684]
[1738163518844,0.8850078,102400.0,102390.0,0.00414684]
[1738163519849,0.55847589,102400.0,102390.0,0.00414684]
[1738163522853,0.7702078,102400.0,102390.0,0.00414684]
[1738163523443,0.7702078,102400.0,102390.0,8.4e-07]
[1738163524249,0.55847589,102400.0,102390.0,8.4e-07]
[1738163524956,0.7702078,102400.0,102390.0,8.4e-07]
[1738163525353,0.195399,102390.0,102380.0,0.22774684]
[1738163525556,0.76793091,102390.0,102380.0,0.22774684]
[1738163525859,0.195438,102370.0,102360.0,0.00146549]
[1738163526047,0.76796991,102370.0,102360.0,0.00146549]
[1738163526359,1.12876991,102370.0,102360.0,0.00146549]
[1738163526560,1.1310658,102370.0,102360.0,0.00146549]
[1738163526853,0.69607744,102370.0,102360.0,0.00146549]
[1738163527464,0.86143944,102370.0,102350.0,0.10614684]
[1738163527650,0.60739389,102370.0,102360.0,0.001]
[1738163527855,0.96819389,102370.0,102360.0,0.001]
[1738163528251,0.96819389,102370.0,102360.0,0.004]
[1738163528754,1.18029441,102370.0,102360.0,0.001]
[1738163529145,0.98485641,102370.0,102350.0,0.00414684]
[1738163529457,0.77065341,102360.0,102350.0,0.00414684]
[1738163529854,0.88585341,102360.0,102350.0,0.00414684]
[1738163530155,0.88585341,102360.0,102350.0,8.4e-07]
[1738163530349,0.92015341,102360.0,102350.0,8.4e-07]
[1738163530550,1.22015341,102360.0,102350.0,8.4e-07]
[1738163530957,0.195533,102320.0,102310.0,0.85694437]
[1738163531160,0.556333,102320.0,102310.0,0.85694437]
[1738163531455,0.195533,102320.0,102310.0,1.41329637]
[1738163531659,0.19782889,102320.0,102310.0,0.894952]
[1738163532855,0.00229589,102320.0,102310.0,0.894952]
[1738163533048,0.00014684,102330.0,102320.0,0.195533]
[1738163533248,0.19566084,102330.0,102320.0,0.556333]
[1738163533645,0.195497,102340.0,102330.0,0.1955]
[1738163533847,0.19694432,102350.0,102340.0,0.195495]
[1738163534051,0.19694432,102350.0,102340.0,0.420695]
[1738163534254,0.195478,102350.0,102340.0,0.420695]
[1738163534955,0.76837852,102350.0,102340.0,0.2252]
[1738163535355,0.195495,102340.0,102330.0,8.4e-07]
[1738163535660,0.195552,102310.0,102300.0,0.33042925]
[1738163535954,1.12925252,102310.0,102300.0,0.1]
[1738163536656,1.12925252,102310.0,102280.0,0.00146632]
[1738163536657,0.19559,102290.0,102280.0,0.00146632]
[1738163536857,1.12929052,102290.0,102280.0,0.11546632]
[1738163537858,1.12929052,102290.0,102280.0,0.114]
[1738163538752,1.12929052,102290.0,102270.0,0.51844229]
[1738163538753,0.93670052,102290.0,102270.0,0.51844229]
[1738163538955,0.76851052,102280.0,102270.0,0.51844229]
[1738163539258,0.76851052,102280.0,102270.0,0.23785829]
[1738163539558,0.98681052,102280.0,102270.0,0.23785829]
[1738163540056,1.28681052,102280.0,102270.0,9.792e-05]
[1738163540263,0.195629,102270.0,102260.0,0.34529701]
[1738163540463,0.76852952,102270.0,102260.0,0.34519909]
[1738163541358,0.54,102260.0,102230.0,0.52016934]
[1738163541560,0.40778652,102240.0,102230.0,0.51936934]
[1738163541855,0.195686,102240.0,102230.0,0.51936934]
[1738163542156,0.76858652,102240.0,102230.0,0.3222]
[1738163542358,0.57290052,102240.0,102220.0,0.23164049]
[1738163542565,0.57290052,102240.0,102220.0,0.42736449]
[1738163542566,0.3608,102230.0,102220.0,0.42736449]
[1738163542765,0.3608,102230.0,102220.0,0.53826449]
[1738163542959,0.556495,102240.0,102230.0,0.195705]
[1738163543560,0.195705,102230.0,102220.0,0.34254049]
[1738163543750,0.76860552,102230.0,102220.0,0.34254049]
[1738163544458,0.195705,102230.0,102220.0,0.34254049]
[1738163544660,0.195705,102230.0,102220.0,0.53826449]
[1738163544861,0.556505,102230.0,102220.0,0.53826449]
[1738163545065,0.3608,102230.0,102220.0,0.53826449]
[1738163545261,0.556505,102230.0,102220.0,0.53826449]
[1738163545558,0.76960552,102230.0,102220.0,0.23164049]
[1738163545963,0.84624552,102230.0,102220.0,0.23164049]
[1738163546360,0.195724,102220.0,102210.0,0.1114]
[1738163546676,0.76862452,102220.0,102210.0,0.1114]
[1738163547355,0.556524,102220.0,102210.0,0.1114]
[1738163547559,0.85039536,102230.0,102210.0,0.307143]
[1738163547757,0.63829484,102230.0,102210.0,0.307143]
[1738163547959,0.64029484,102230.0,102210.0,0.307143]
[1738163548162,0.65668736,102230.0,102210.0,0.307143]
[1738163548356,0.195724,102220.0,102210.0,0.307143]
[1738163548557,0.64029684,102230.0,102210.0,0.307143]
[1738163548867,0.63829684,102230.0,102210.0,0.307143]
[1738163549067,0.005,102220.0,102210.0,0.4732]
[1738163549370,0.19585684,102230.0,102220.0,0.195724]
[1738163549567,0.76875736,102230.0,102210.0,0.667941]
[1738163549870,0.00514684,102230.0,102220.0,0.195724]
[1738163550070,0.556489,102240.0,102220.0,0.556524]
[1738163550270,0.556489,102240.0,102230.0,0.2247]
[1738163550467,0.76858952,102240.0,102230.0,0.2247]
[1738163550769,0.556489,102240.0,102230.0,0.420405]
[1738163551166,0.197689,102240.0,102230.0,0.420405]
[1738163551665,0.558489,102240.0,102230.0,0.2247]
[1738163551873,0.556489,102240.0,102230.0,0.2247]
[1738163552066,0.556489,102240.0,102220.0,0.19586584]
[1738163552067,0.195705,102230.0,102220.0,0.00014684]
[1738163552263,0.76860552,102230.0,102220.0,0.00014684]
[1738163553759,0.76960552,102230.0,102220.0,0.00014684]
[1738163554875,0.557505,102230.0,102220.0,0.00014684]
[1738163555271,0.76960552,102230.0,102220.0,0.00014684]
[1738163555665,0.557505,102230.0,102220.0,0.00014684]
[1738163556068,0.196705,102230.0,102220.0,0.00014684]
[1738163556266,0.196705,102230.0,102220.0,0.41917084]
[1738163556775,0.001,102230.0,102220.0,0.77983669]
[1738163557165,0.00014684,102250.0,102240.0,0.195686]
[1738163557369,0.19581384,102250.0,102240.0,0.195686]
[1738163558075,0.095686,102240.0,102230.0,0.195699]
[1738163558280,0.19581784,102250.0,102240.0,0.195686]
[1738163558582,0.19781784,102250.0,102240.0,0.195686]
[1738163558781,0.55861784,102250.0,102240.0,0.195686]
[1738163559579,0.19781784,102250.0,102240.0,0.195686]
[1738163559784,0.195686,102240.0,102230.0,0.556496]
[1738163559968,0.195686,102240.0,102230.0,0.666196]
[1738163560281,0.57504736,102250.0,102230.0,0.666196]
[1738163560282,0.19782484,102250.0,102240.0,0.195686]
[1738163560471,0.20482484,102250.0,102240.0,0.557486]
[1738163560671,0.00146763,102260.0,102250.0,0.195667]
[1738163560873,0.00146763,102260.0,102250.0,0.663267]
[1738163561078,0.19711563,102260.0,102250.0,0.302467]
[1738163561673,0.55791563,102260.0,102250.0,0.302467]
[1738163561986,0.20012563,102260.0,102250.0,0.195667]
[1738163562186,0.20012563,102260.0,102250.0,0.302467]
[1738163562369,0.20412563,102260.0,102250.0,0.302467]
[1738163563075,0.56492563,102260.0,102250.0,0.1068]
[1738163563270,0.20412563,102260.0,102250.0,0.302467]
[1738163563671,0.20112563,102260.0,102250.0,0.302467]
[1738163563872,0.20112563,102260.0,102250.0,0.404267]
[1738163564382,0.56192563,102260.0,102250.0,0.404267]
[1738163564569,0.19712563,102260.0,102250.0,0.404267]
[1738163565177,0.55792563,102260.0,102250.0,0.404267]
[1738163565376,0.77002615,102260.0,102250.0,0.2086]
[1738163565581,0.195667,102250.0,102240.0,0.19583084]
[1738163565970,0.40922515,102260.0,102240.0,0.36094684]
[1738163566177,0.40922515,102260.0,102250.0,0.195667]
[1738163566178,0.19712463,102260.0,102250.0,0.195667]
[1738163566375,0.55792463,102260.0,102250.0,0.195667]
[1738163566586,0.19712463,102260.0,102250.0,0.195667]
[1738163567179,0.19812463,102260.0,102250.0,0.195667]
[1738163567576,0.33594407,102260.0,102250.0,0.195667]
[1738163567776,0.42295981,102260.0,102250.0,0.195667]
[1738163567976,0.195667,102250.0,102240.0,0.55662384]
[1738163568183,0.69428644,102250.0,102240.0,0.00014684]
[1738163568384,0.69428644,102250.0,102230.0,0.3239]
[1738163568385,0.195705,102230.0,102220.0,0.1024]
[1738163568681,0.69432444,102230.0,102220.0,0.298124]
[1738163568886,0.556505,102230.0,102220.0,0.298124]
[1738163569088,0.195705,102230.0,102220.0,0.298124]
[1738163569386,0.195705,102230.0,102220.0,0.658924]
[1738163569774,0.195705,102230.0,102220.0,0.298124]
[1738163570180,0.33352444,102230.0,102220.0,0.1024]
[1738163570384,0.69432444,102230.0,102220.0,0.03729069]
[1738163570577,0.195724,102220.0,102210.0,0.2153]
[1738163570784,0.76920138,102220.0,102210.0,0.25260633]
[1738163570980,0.556524,102220.0,102210.0,0.2153]
[1738163571178,0.195743,102210.0,102200.0,0.2108]
[1738163571483,0.195743,102210.0,102200.0,0.24812383]
[1738163571787,0.195743,102210.0,102200.0,0.44388683]
[1738163572884,0.195743,102210.0,102200.0,0.44688683]
[1738163573478,0.00014684,102220.0,102200.0,0.61192383]
[1738163573680,0.19587284,102220.0,102210.0,0.556543]
[1738163574089,0.00014684,102220.0,102210.0,0.556543]
[1738163575075,0.556488,102250.0,102240.0,0.195681]
[1738163575488,0.556488,102250.0,102240.0,0.23318106]
[1738163576188,2.056488,102250.0,102240.0,0.195681]
[1738163576391,1.695688,102250.0,102240.0,0.195681]
[1738163577091,0.195686,102240.0,102230.0,0.65974384]
[1738163577292,0.195686,102240.0,102230.0,0.69641448]
[1738163577696,0.195686,102240.0,102230.0,0.33561448]
[1738163578003,0.195686,102240.0,102230.0,0.29894384]
[1738163578292,1.695671,102250.0,102240.0,0.195686]
[1738163578694,2.056471,102250.0,102240.0,0.195686]
[1738163579083,0.195686,102240.0,102230.0,0.29994984]
[1738163579488,0.556486,102240.0,102230.0,0.10424684]
[1738163579691,0.76916338,102240.0,102230.0,0.00114684]
[1738163580988,0.76916338,102240.0,102230.0,0.00014684]
[1738163582895,0.91515664,102240.0,102230.0,0.00014684]
[1738163583200,0.70247926,102240.0,102230.0,0.19585184]
[1738163583390,0.70247926,102240.0,102230.0,0.00014684]
[1738163583800,0.70347926,102240.0,102230.0,0.19585184]
[1738163583999,0.14699326,102240.0,102230.0,0.55665184]
[1738163584206,0.14699326,102240.0,102230.0,0.56495184]
[1738163584501,0.34267926,102240.0,102230.0,0.56495184]
[1738163584907,0.34167926,102240.0,102230.0,0.56495184]
[1738163585203,0.34267926,102240.0,102230.0,0.56495184]
[1738163585409,0.14699326,102240.0,102230.0,0.92575184]
[1738163585897,0.91615664,102240.0,102230.0,0.00014684]
[1738163586595,0.77016338,102240.0,102230.0,0.00014684]
[1738163586892,1.16476338,102240.0,102230.0,0.00014684]
[1738163587097,1.16476338,102240.0,102230.0,0.19585184]
[1738163587298,0.952086,102240.0,102230.0,0.00014684]
[1738163587597,1.16476338,102240.0,102230.0,0.00014684]
[1738163588304,0.195743,102210.0,102200.0,1.08958646]
[1738163588501,0.195731,102220.0,102210.0,0.195734]
[1738163589114,0.556516,102230.0,102220.0,0.195724]
[1738163589403,0.19586284,102230.0,102220.0,0.195724]
[1738163589798,0.00014684,102230.0,102220.0,0.195724]
[1738163589991,0.00014684,102230.0,102220.0,0.822124]
[1738163590396,0.19585184,102230.0,102220.0,0.822124]
[1738163590602,0.19585184,102230.0,102220.0,0.461324]
[1738163591603,0.19585184,102230.0,102220.0,0.462324]
[1738163591805,0.00014684,102230.0,102220.0,0.823124]
[1738163592707,0.0876413,102240.0,102220.0,0.9274]
[1738163592906,0.0876413,102240.0,102230.0,0.69432274]
[1738163593205,0.0876413,102240.0,102230.0,0.694405]
[1738163593507,0.0876413,102240.0,102230.0,0.83222274]
[1738163594909,1.61700191,102250.0,102240.0,0.195686]
[1738163595097,0.15689895,102250.0,102240.0,0.83212148]
[1738163595300,0.32118517,102260.0,102250.0,0.195667]
[1738163595500,0.32118517,102260.0,102250.0,0.556467]
[1738163595808,0.51683317,102260.0,102250.0,0.556467]
[1738163596601,0.195667,102250.0,102240.0,0.55662484]
[1738163596908,0.45900291,102260.0,102240.0,0.55662484]
[1738163596909,0.51684417,102260.0,102250.0,0.195667]
[1738163597098,0.195659,102260.0,102250.0,0.556467]
[1738163597304,0.73498526,102270.0,102260.0,0.195648]
[1738163597503,0.73498526,102270.0,102260.0,0.556448]
[1738163598111,0.53935426,102270.0,102260.0,0.556448]
[1738163598311,0.27125426,102270.0,102260.0,0.69426574]
[1738163598611,0.14175426,102270.0,102260.0,0.69426574]
[1738163599111,0.14175426,102270.0,102260.0,0.556448]
[1738163599310,0.33738326,102270.0,102260.0,0.556448]
[1738163599514,0.14175426,102270.0,102260.0,0.556448]
[1738163600605,0.33738326,102270.0,102260.0,0.556448]
[1738163601008,0.14175426,102270.0,102260.0,0.556448]
[1738163601506,0.14175426,102270.0,102260.0,0.69426574]
[1738163601507,0.02581684,102270.0,102260.0,0.69426574]
[1738163603311,0.02581684,102270.0,102260.0,0.81396574]
[1738163604218,0.02581684,102270.0,102260.0,1.21688584]
[1738163604619,0.02581684,102270.0,102260.0,0.91688584]
[1738163605212,0.02581684,102270.0,102260.0,0.81396574]
[1738163605414,0.02581684,102270.0,102260.0,0.82296574]
[1738163605615,0.02481684,102270.0,102260.0,0.82496574]
[1738163605918,0.02481684,102270.0,102260.0,1.05776041]
[1738163607011,0.02481684,102270.0,102260.0,0.93806041]
[1738163607218,0.22044584,102270.0,102260.0,0.80024267]
[1738163607514,0.02481684,102270.0,102260.0,0.92906041]
[1738163607720,0.02481684,102270.0,102260.0,0.93406041]
[1738163608112,0.02481684,102270.0,102260.0,0.92906041]
[1738163608307,0.02481684,102270.0,102260.0,0.93106041]
[1738163608618,0.02481684,102270.0,102260.0,1.03870556]
[1738163608812,0.02481684,102270.0,102260.0,1.14270556]
[1738163609316,0.02481684,102270.0,102260.0,0.80226574]
[1738163609511,0.22044584,102270.0,102260.0,0.69626574]
[1738163610313,0.22044584,102270.0,102260.0,0.558448]
[1738163610519,0.35334584,102270.0,102260.0,0.558448]
[1738163611221,0.35334584,102270.0,102260.0,0.560448]
[1738163611421,0.35334584,102270.0,102260.0,0.559448]
[1738163611717,0.35334584,102270.0,102260.0,0.69526574]
[1738163611924,0.02481684,102270.0,102260.0,0.69526574]
[1738163612225,0.02481684,102270.0,102260.0,0.79986162]
[1738163612919,0.22044584,102270.0,102260.0,0.79986162]
[1738163613918,0.22044584,102270.0,102260.0,0.66204388]
[1738163614120,0.61694584,102270.0,102260.0,0.66204388]
[1738163614718,0.61694584,102270.0,102260.0,0.557448]
[1738163615224,0.61694584,102270.0,102260.0,0.69526574]
[1738163615417,0.42131684,102270.0,102260.0,0.69526574]
[1738163615811,0.61694584,102270.0,102260.0,0.69526574]
[1738163616324,0.61694584,102270.0,102260.0,0.69426574]
[1738163616526,0.61694584,102270.0,102260.0,0.556448]
[1738163616915,0.61694584,102270.0,102260.0,0.69626574]
[1738163617321,0.61694584,102270.0,102260.0,0.558448]
[1738163617524,1.11556358,102270.0,102260.0,0.003]
[1738163617732,0.75476358,102270.0,102260.0,0.003]
[1738163618025,0.61694584,102270.0,102260.0,0.557448]
[1738163618523,0.61694584,102270.0,102260.0,0.69526574]
[1738163618917,0.61694584,102270.0,102260.0,0.557448]
[1738163620028,0.78211684,102270.0,102250.0,0.96375971]
[1738163620231,0.195648,102260.0,102250.0,0.96375971]
[1738163620920,0.195648,102260.0,102250.0,0.60295971]
[1738163621318,0.195648,102260.0,102250.0,0.96375971]
[1738163621517,0.195648,102260.0,102250.0,0.73096504]
[1738163621726,0.33346574,102260.0,102250.0,0.17450604]
[1738163621924,0.195648,102260.0,102250.0,0.37017304]
[1738163623321,0.195648,102260.0,102250.0,0.17450604]
[1738163623523,0.69426574,102260.0,102250.0,0.17450604]
[1738163623925,0.69426574,102260.0,102250.0,0.37017304]
[1738163623926,0.195648,102260.0,102250.0,0.37017304]
[1738163624430,0.195648,102260.0,102250.0,0.17450604]
[1738163625021,0.69426574,102260.0,102250.0,0.17450604]
[1738163625433,0.49861774,102260.0,102240.0,0.96392255]
[1738163625622,0.195667,102250.0,102240.0,0.96392255]
[1738163625817,0.195667,102250.0,102240.0,0.40744755]
[1738163626017,0.69428474,102250.0,102240.0,0.40744755]
[1738163626218,0.556467,102250.0,102240.0,0.40744755]
[1738163626429,0.195667,102250.0,102240.0,0.96393355]
[1738163627027,0.195667,102250.0,102240.0,0.60313355]
[1738163627722,0.196667,102250.0,102240.0,0.60313355]
[1738163627925,0.196667,102250.0,102240.0,0.60513355]
[1738163628327,0.69428474,102250.0,102240.0,0.00014684]
[1738163628727,0.195667,102250.0,102240.0,0.00014684]
[1738163628932,0.556467,102250.0,102240.0,0.00014684]
[1738163629228,0.195667,102250.0,102240.0,0.00014684]
[1738163629429,0.556467,102250.0,102240.0,0.00014684]
[1738163629632,0.33348474,102250.0,102240.0,0.00014684]
[1738163630018,0.69428474,102250.0,102240.0,0.00014684]
[1738163630232,0.195667,102250.0,102240.0,0.19583284]
[1738163630425,0.195667,102250.0,102240.0,0.55663284]
[1738163630725,0.001,102250.0,102240.0,0.69445058]
[1738163630925,0.196667,102250.0,102240.0,0.55663284]
[1738163631125,0.198667,102250.0,102240.0,0.55663284]
[1738163632225,0.196667,102250.0,102240.0,0.55663284]
[1738163633835,0.195667,102250.0,102240.0,0.55663284]
[1738163635021,0.195667,102250.0,102240.0,0.19583284]
[1738163635427,0.28754305,102250.0,102240.0,0.00014684]
[1738163635733,0.28754305,102250.0,102240.0,0.19583284]
[1738163636037,0.28754305,102250.0,102240.0,0.00014684]
[1738163636837,0.28854305,102250.0,102240.0,0.17465288]
[1738163637032,0.196667,102250.0,102240.0,0.73113888]
[1738163637527,0.28854305,102250.0,102240.0,0.73113888]
[1738163637727,0.196667,102250.0,102240.0,0.73113888]
[1738163638531,0.195667,102250.0,102240.0,0.82301493]
[1738163639037,0.61694984,102270.0,102260.0,0.195648]
[1738163639234,0.61694984,102270.0,102260.0,0.64832405]
[1738163639439,0.61694984,102270.0,102260.0,0.556448]
[1738163639640,0.195658,102260.0,102250.0,0.556465]
[1738163639837,0.195658,102260.0,102250.0,0.195665]
[1738163640044,0.28753405,102260.0,102250.0,0.195665]
[1738163640250,0.195658,102260.0,102250.0,0.556465]
[1738163641142,0.61695584,102270.0,102260.0,0.195648]
[1738163641345,0.61695584,102270.0,102260.0,0.556448]
[1738163642032,0.61895584,102270.0,102260.0,0.556448]
[1738163642436,0.61795584,102270.0,102260.0,0.556448]
[1738163642832,0.61695584,102270.0,102260.0,0.556448]
[1738163644842,0.61695584,102270.0,102260.0,0.73095404]
[1738163647034,0.02481684,102270.0,102260.0,0.86874658]
[1738163647643,0.02481684,102270.0,102260.0,0.73095404]
[1738163647844,0.22044584,102270.0,102260.0,0.73095404]
[1738163648039,0.02481684,102270.0,102260.0,0.73095404]
[1738163648347,0.02481684,102270.0,102260.0,0.86874658]
[1738163649344,0.22044584,102270.0,102260.0,0.73095404]
[1738163650336,0.02481684,102270.0,102260.0,0.86874658]
[1738163651844,0.22044584,102270.0,102260.0,0.73095404]
[1738163652151,0.22044584,102270.0,102260.0,0.86874658]
[1738163652650,0.02481684,102270.0,102260.0,0.87863138]
[1738163652949,0.22044584,102270.0,102260.0,1.11142605]
[1738163653152,0.02481684,102270.0,102260.0,1.11142605]
[1738163654040,8.4e-07,102270.0,102260.0,1.21849018]
[1738163654249,0.14599326,102300.0,102290.0,0.19559]
[1738163654449,0.14599326,102300.0,102290.0,0.69418254]
[1738163654846,0.34156426,102300.0,102290.0,0.55639]
[1738163655538,0.34456426,102300.0,102290.0,0.55639]
[1738163655950,0.34456426,102300.0,102280.0,0.62054684]
[1738163655951,0.19559,102290.0,102280.0,0.55654584]
[1738163656152,0.14899326,102300.0,102280.0,0.36094684]
[1738163656351,0.14899326,102300.0,102290.0,0.69418254]
[1738163656551,0.58863875,102310.0,102290.0,0.69418254]
[1738163656552,0.1468948,102310.0,102300.0,0.195571]
[1738163656759,0.00014684,102310.0,102300.0,0.69416354]
[1738163657046,0.14596336,102320.0,102310.0,0.195552]
[1738163657251,0.14596336,102320.0,102310.0,0.69414454]
[1738163658448,1.3895232,102350.0,102310.0,0.69414454]
[1738163658449,0.48839636,102350.0,102330.0,0.3608]
[1738163658654,0.37892332,102360.0,102340.0,0.71049254]
[1738163658947,0.33191957,102360.0,102350.0,0.69406854]
[1738163660942,0.20496457,102360.0,102350.0,0.69406854]
[1738163661143,0.20496457,102360.0,102350.0,0.82656854]
[1738163661345,0.05801957,102360.0,102350.0,0.96636108]
[1738163661546,8.4e-07,102370.0,102360.0,0.195457]
[1738163661741,8.4e-07,102370.0,102360.0,0.83184208]
[1738163661953,8.4e-07,102370.0,102360.0,0.94028635]
[1738163662352,0.1,102400.0,102360.0,1.04482935]
[1738163662560,0.1,102400.0,102390.0,1.05479154]
[1738163662853,0.4608,102400.0,102380.0,0.3608]
[1738163663049,0.41019254,102390.0,102370.0,0.3608]
[1738163663249,0.90809254,102390.0,102360.0,0.55771691]
[1738163663559,0.195433,102380.0,102370.0,0.13779254]
[1738163663857,0.195433,102380.0,102370.0,0.3608]
[1738163664448,0.195438,102370.0,102360.0,0.55786375]
[1738163664656,0.195438,102370.0,102360.0,0.36241175]
[1738163664856,0.195438,102370.0,102360.0,0.36341175]
[1738163665644,0.556238,102370.0,102360.0,0.00261175]
[1738163665850,0.69403054,102370.0,102360.0,0.00261175]
[1738163666248,0.33323054,102370.0,102360.0,0.00261175]
[1738163666452,0.195457,102360.0,102350.0,0.5348106]
[1738163669856,0.332457,102360.0,102350.0,0.5348106]
[1738163670163,0.332457,102360.0,102350.0,0.3608]
[1738163671157,0.12718203,102360.0,102350.0,0.3608]
[1738163671556,0.32263903,102360.0,102350.0,0.3608]
[1738163671953,0.46153903,102360.0,102350.0,0.556276]
[1738163672749,0.26608203,102360.0,102340.0,0.50842483]
[1738163672951,0.26608203,102360.0,102340.0,0.00014684]
[1738163672952,0.340076,102350.0,102340.0,0.00014684]
[1738163673157,0.700876,102350.0,102340.0,0.00014684]
[1738163674061,0.52492516,102350.0,102340.0,0.00014684]
[1738163674260,0.52492516,102350.0,102340.0,0.00214684]
[1738163674870,0.195514,102330.0,102320.0,0.29001768]
[1738163675059,0.556314,102330.0,102320.0,0.29001768]
[1738163675365,0.195514,102330.0,102320.0,0.84635068]
[1738163675569,0.195514,102330.0,102320.0,0.98414322]
[1738163675757,0.195514,102330.0,102320.0,0.84635068]
[1738163676064,0.195514,102330.0,102320.0,0.48555068]
[1738163676266,0.195514,102330.0,102320.0,0.42632467]
[1738163676563,0.195514,102330.0,102320.0,0.23079167]
[1738163676967,0.40966478,102330.0,102320.0,0.23079167]
[1738163677262,0.556314,102330.0,102320.0,0.23079167]
[1738163677451,0.692214,102330.0,102320.0,0.23079167]
[1738163677658,0.331414,102330.0,102320.0,0.78712467]
[1738163678061,0.00014684,102340.0,102330.0,0.195514]
[1738163678062,0.46814384,102340.0,102330.0,0.195514]
[1738163678262,0.46814384,102340.0,102330.0,0.69410654]
[1738163678869,0.46814384,102340.0,102330.0,0.33330654]
[1738163679066,0.46814384,102340.0,102330.0,0.195514]
[1738163679365,0.195514,102330.0,102320.0,0.78711767]
[1738163680274,0.195514,102330.0,102320.0,0.195526]
[1738163680567,0.195533,102320.0,102310.0,0.69584364]
[1738163681767,0.195533,102320.0,102310.0,0.0017061]
[1738163681968,0.33332554,102320.0,102310.0,0.0017061]
[1738163682165,0.82422554,102320.0,102310.0,0.0017061]
[1738163682364,0.325633,102320.0,102310.0,0.0017061]
[1738163683270,0.325633,102320.0,102310.0,0.0067061]
[1738163683658,0.325633,102320.0,102310.0,0.0017061]
[1738163683863,0.325633,102320.0,102310.0,0.0037061]
[1738163684067,0.325633,102320.0,102310.0,0.69785064]
[1738163684367,0.325633,102320.0,102310.0,0.33705064]
[1738163684573,0.686433,102320.0,102310.0,0.0037061]
[1738163684866,0.82422554,102320.0,102310.0,0.00561213]
[1738163685061,0.686433,102320.0,102310.0,0.00561213]
[1738163685470,0.686433,102320.0,102310.0,0.00361213]
[1738163685665,0.686433,102320.0,102310.0,0.00461213]
[1738163686262,0.686433,102320.0,102310.0,0.00261213]
[1738163687370,0.686433,102320.0,102310.0,0.00161213]
[1738163687569,0.687433,102320.0,102310.0,0.00161213]
[1738163688074,0.196533,102320.0,102310.0,0.69575667]
[1738163688270,0.195516,102330.0,102310.0,0.50020467]
[1738163688469,0.001,102320.0,102310.0,0.74195013]
[1738163688670,0.001,102320.0,102310.0,1.10275013]
[1738163689177,0.195516,102330.0,102320.0,0.195533]
[1738163689376,0.40554684,102340.0,102320.0,0.49859254]
[1738163689562,0.00014684,102340.0,102330.0,0.69410654]
[1738163691777,0.19564184,102340.0,102330.0,0.556314]
[1738163692165,0.19564184,102340.0,102320.0,0.67607454]
[1738163692166,0.00014684,102340.0,102320.0,0.4894]
[1738163692374,0.00014684,102340.0,102330.0,0.556314]
[1738163692375,0.19564884,102340.0,102330.0,0.556314]
[1738163692668,0.19564884,102340.0,102330.0,0.558314]
[1738163693264,0.19564884,102340.0,102330.0,0.3628]
[1738163693475,0.195514,102330.0,102320.0,0.84634268]
[1738163693974,0.195514,102330.0,102320.0,0.29001768]
[1738163694182,0.326714,102330.0,102320.0,0.29001768]
[1738163694385,0.457514,102330.0,102320.0,0.48555068]
[1738163695080,0.326314,102330.0,102320.0,0.48555068]
[1738163695283,0.195514,102330.0,102320.0,0.62334322]